fUST/lending_fUST_20260107
["ID","MTS","AMOUNT","RATE_DAILY","PERIOD"]
[400679020,1767777437689,500.0,0.00012227,2]
[400679021,1767777437715,500.0,0.00012227,2]
[400679022,1767777437743,500.0,0.00012227,2]
[400679023,1767777437771,500.0,0.00012227,2]
[400679024,1767777437799,500.0,0.00012227,2]
[400679025,1767777437827,500.0,0.00012227,2]
[400679026,1767777437863,638.4652331,0.00012227,2]
[400679027,1767777437894,500.0,0.00012227,2]
[400679028,1767777437920,500.0,0.00012227,2]
[400679029,1767777437949,500.0,0.00012227,2]
[400679030,1767777437977,500.0,0.00012227,2]
[400679031,1767777438018,500.0,0.00012227,2]
[400679032,1767777438054,500.0,0.00012227,2]
[400679033,1767777438088,500.0,0.00012227,2]
[400679034,1767777438121,500.0,0.00012227,2]
[400679035,1767777438150,500.0,0.00012227,2]
[400679036,1767777438185,312.19489433,0.00012227,2]
[400679037,1767777438211,187.80510567,0.00012227,2]
[400679038,1767777438242,500.0,0.00012227,2]
[400679039,1767777438271,500.0,0.00012227,2]
[400679040,1767777438312,500.0,0.00012227,2]
[400679041,1767777438346,500.0,0.00012227,2]
[400679042,1767777438376,500.0,0.00012227,2]
[400679043,1767777438404,500.0,0.00012227,2]
[400679044,1767777438434,500.0,0.00012227,2]
[400679045,1767777438465,425.7426287,0.00012227,2]
[400679046,1767777438500,500.0,0.00012227,2]
[400679047,1767777438529,500.0,0.00012227,2]
[400679048,1767777438557,500.0,0.00012227,2]
[400679049,1767777438586,500.0,0.00012227,2]
[400679050,1767777438621,500.0,0.00012227,2]
[400679051,1767777438649,500.0,0.00012227,2]
[400679052,1767777438678,500.0,0.00012227,2]
[400679053,1767777438707,500.0,0.00012227,2]
[400679054,1767777438738,500.0,0.00012227,2]
[400679055,1767777438766,500.0,0.00012227,2]
[400679056,1767777438794,500.0,0.00012227,2]
[400679057,1767777438826,270.3768034,0.00012227,2]
[400679058,1767777438862,116.08546223,0.00012227,2]
[400679059,1767777438885,383.91453777,0.00012227,2]
[400679060,1767777438913,500.0,0.00012227,2]
[400679061,1767777438940,500.0,0.00012227,2]
[400679062,1767777438970,500.0,0.00012227,2]
[400679063,1767777439003,500.0,0.00012227,2]
[400679064,1767777439034,500.0,0.00012227,2]
[400679065,1767777439062,500.0,0.00012227,2]
[400679066,1767777439090,500.0,0.00012227,2]
[400679067,1767777439122,500.0,0.00012227,2]
[400679068,1767777439153,500.0,0.00012227,2]
[400679069,1767777439182,500.0,0.00012227,2]
[400679070,1767777439224,500.0,0.00012227,2]
[400679071,1767777439253,500.0,0.00012227,2]
[400679072,1767777439286,500.0,0.00012227,2]
[400679074,1767777455495,500.0,0.00012227,2]
[400679075,1767777455555,500.0,0.00012227,2]
[400679076,1767777456461,2116.09546223,0.00012228,2]
[400679077,1767777456487,2883.90453777,0.00012228,2]
[400679078,1767777468584,272.03,7.26e-05,2]
[400679079,1767777469035,408.05,7.59e-05,2]
[400679080,1767777469450,544.06,7.92e-05,2]
[400679081,1767777469871,680.08,8.25e-05,2]
[400679082,1767777470310,816.09,8.58e-05,2]
[400679083,1767777470728,952.11,8.91e-05,2]
[400679084,1767777471159,1088.13,9.24e-05,2]
[400679085,1767777471565,1224.14,9.57e-05,2]
[400679086,1767777471990,1360.16,9.9e-05,2]
[400679087,1767777478960,2655.16,0.00012228,2]
[400679088,1767777478985,2344.84,0.00012228,2]
[400679089,1767777482813,300.0,0.00012227,2]
[400679090,1767777486892,5000.0,0.00012228,2]
[400679116,1767777502297,2355.17,0.00012228,2]
[400679117,1767777502322,2644.83,0.00012228,2]
[400679118,1767777510090,5000.0,0.00012228,2]
[400679119,1767777526015,2355.18,0.00012228,2]
[400679120,1767777526038,2644.82,0.00012228,2]
[400679121,1767777533871,5000.0,0.00012228,2]
[400679122,1767777545609,178.19,7.847e-05,2]
[400679123,1767777546533,222.74,8.174e-05,2]
[400679124,1767777546965,267.29,8.501e-05,2]
[400679125,1767777547437,311.84,8.827e-05,2]
[400679126,1767777547845,356.39,9.154e-05,2]
[400679127,1767777548276,400.94,9.481e-05,2]
[400679128,1767777548699,445.48,9.808e-05,2]
[400679129,1767777549290,172.32,0.00012228,2]
[400679130,1767777549315,4827.68,0.00012228,2]
[400679131,1767777557093,5000.0,0.00012228,2]
[400679132,1767777572586,172.33,0.00012228,2]
[400679133,1767777572610,4827.67,0.00012228,2]
[400679134,1767777595306,5000.0,0.00012228,2]
[400679135,1767777602230,172.34,0.00012227,2]
[400679136,1767777602257,127.66,0.00012227,2]
[400679137,1767777615514,218.1,8.039e-05,2]
[400679138,1767777615932,436.2,8.422e-05,2]
[400679139,1767777616361,654.3,8.805e-05,2]
[400679140,1767777616762,872.39,9.188e-05,2]
[400679141,1767777617175,1090.49,9.571e-05,2]
[400679142,1767777618117,1308.59,9.953e-05,2]
[400679143,1767777618378,5000.0,0.00012228,2]
[400679144,1767777618621,292.28,0.00010336,2]
[400679145,1767777618646,1234.41,0.00010336,2]
[400679146,1767777619194,1744.79,0.00010719,2]
[400679147,1767777619453,1962.89,0.00011102,2]
[400679148,1767777619888,2180.99,0.00011485,2]
[400679156,1767777640186,2129.52215096,0.00012128,2]
[400679157,1767777641704,411.72936871,0.00012228,2]
[400679161,1767777663005,300.0,0.00012227,2]
[400679163,1767777693794,35.67848033,7.434e-05,2]
[400679164,1767777693820,160.61151967,7.434e-05,2]
[400679165,1767777694215,261.72,7.757e-05,2]
[400679166,1767777694679,327.15,8.08e-05,2]
[400679167,1767777695108,392.58,8.403e-05,2]
[400679168,1767777695557,458.01,8.726e-05,2]
[400679169,1767777695947,523.44,9.05e-05,2]
[400679170,1767777696372,588.87,9.373e-05,2]
[400679171,1767777696839,654.3,9.696e-05,2]
[400679172,1767777703315,273.83,0.00011983,2]
[400679173,1767777722669,300.0,0.00012227,2]
[400679174,1767777768827,154.89,8.521e-05,2]
[400679175,1767777769224,177.01,8.836e-05,2]
[400679176,1767777770154,199.14,9.152e-05,2]
[400679177,1767777770570,221.27,9.467e-05,2]
[400679178,1767777782461,300.0,0.00012227,2]
[400679179,1767777794647,300.0,0.00011435,2]
[400679180,1767777842760,300.0,0.00012227,2]
[400679181,1767777902071,300.0,0.00012227,2]
[400679182,1767777941536,4107.18848033,0.00011435,2]
[400679183,1767777941558,5892.81151967,0.00011435,2]
[400679185,1767777962494,300.0,0.00012227,2]
[400679186,1767777971214,173.96,7.24e-05,2]
[400679187,1767777971559,231.95,7.555e-05,2]
[400679188,1767777971979,289.94,7.87e-05,2]
[400679189,1767777972392,347.93,8.184e-05,2]
[400679190,1767777972786,405.92,8.499e-05,2]
[400679191,1767777973197,463.91,8.814e-05,2]
[400679192,1767777973639,521.89,9.129e-05,2]
[400679193,1767777974063,579.88,9.443e-05,2]
[400679194,1767777980703,791.81848033,0.00012128,2]
[400679195,1767777980732,911.79924043,0.00012128,2]
[400679196,1767778012729,1183.04560614,0.00012228,2]
[400679197,1767778022562,300.0,0.00012227,2]
[400679198,1767778044457,154.48,7.691e-05,2]
[400679199,1767778044872,193.11,8.011e-05,2]
[400679200,1767778045282,231.73,8.331e-05,2]
[400679201,1767778045703,270.35,8.652e-05,2]
[400679202,1767778046114,308.97,8.972e-05,2]
[400679203,1767778046586,347.59,9.293e-05,2]
[400679204,1767778047027,386.21,9.613e-05,2]
[400679205,1767778082436,300.0,0.00012227,2]
[400679210,1767778097207,5412.72515343,0.00012128,2]
[400679211,1767778097235,10000.01,0.00012128,2]
[400679212,1767778097261,10000.01,0.00012128,2]
[400679213,1767778097287,10000.01,0.00012128,2]
[400679214,1767778097313,10000.01,0.00012128,2]
[400679215,1767778097339,10000.01,0.00012128,2]
[400679216,1767778114685,178.65,7.24e-05,2]
[400679217,1767778114968,238.2,7.555e-05,2]
[400679218,1767778115536,297.75,7.87e-05,2]
[400679219,1767778115845,357.3,8.185e-05,2]
[400679220,1767778116266,416.85,8.5e-05,2]
[400679221,1767778116673,476.4,8.814e-05,2]
[400679222,1767778117096,535.95,9.129e-05,2]
[400679223,1767778119374,-485.16167104,9.444e-05,2]
[400679224,1767778119658,8264.15977992,7.3e-05,2]
[400679226,1767778124063,500.0,9.275e-05,2]
[400679227,1767778132482,5000.0,9.275e-05,2]
[400679228,1767778140660,1566.01175538,9.275e-05,2]
[400679237,1767778149751,5000.0,9.275e-05,2]
[400679238,1767778156697,-110.33832896,9.444e-05,2]
[400679239,1767778156726,-300.0,0.00012126,2]
[400679240,1767778156758,-556.45934038,0.00012127,2]
[400679241,1767778156787,-500.0,0.00012127,2]
[400679242,1767778156818,-500.0,0.00012127,2]
[400679243,1767778156846,-482.48214125,0.00012127,2]
[400679244,1767778156874,-500.0,0.00012127,2]
[400679245,1767778156902,-500.0,0.00012127,2]
[400679246,1767778156931,-500.0,0.00012127,2]
[400679247,1767778156961,-500.0,0.00012127,2]
[400679248,1767778156991,-500.0,0.00012127,2]
[400679250,1767778187653,187.07,7.721e-05,2]
[400679251,1767778188079,249.43,8.056e-05,2]
[400679252,1767778188494,311.79,8.392e-05,2]
[400679253,1767778188912,374.15,8.728e-05,2]
[400679254,1767778189312,436.51,9.063e-05,2]
[400679255,1767778191197,-498.86,9.399e-05,2]
[400679256,1767778191228,-561.22,9.735e-05,2]
[400679257,1767778191259,-623.58,0.00010071,2]
[400679258,1767778191290,-1632.69,0.00011885,2]
[400679259,1767778191581,-3367.31,0.00011885,2]
[400679260,1767778192015,-4223.11862151,0.00012005,2]
[400679261,1767778192818,751.0,0.00030136,120]
[400679262,1767778210094,-5000.0,0.00012005,2]
[400679263,1767778210497,-300.0,0.00012126,2]
[400679264,1767778210528,-300.0,0.00012126,2]
[400679268,1767778228870,-5000.0,0.00012005,2]
[400679299,1767778231915,-293.44926495,0.00011228,2]
[400679302,1767778238006,-9602.91156985,0.00011228,2]
[400679303,1767778238017,-500.0,0.00012126,2]
[400679304,1767778238028,-500.0,0.00012126,2]
[400679305,1767778238039,-500.0,0.00012126,2]
[400679306,1767778238050,-325.0825143,0.00012126,2]
[400679307,1767778238061,-500.0,0.00012126,2]
[400679308,1767778238072,-500.0,0.00012126,2]
[400679309,1767778238082,-500.0,0.00012126,2]
[400679310,1767778238092,-293.16280368,0.00012126,2]
[400679311,1767778238103,-634.62978427,0.00012126,2]
[400679312,1767778238113,-50000.0,0.00012127,2]
[400679313,1767778238124,-500.0,0.00012127,2]
[400679314,1767778238136,-500.0,0.00012127,2]
[400679315,1767778238147,-500.0,0.00012127,2]
[400679316,1767778238157,-337.73749887,0.00012127,2]
[400679317,1767778238168,-500.0,0.00012127,2]
[400679318,1767778238179,-500.0,0.00012127,2]
[400679319,1767778238189,-500.0,0.00012127,2]
[400679320,1767778238199,-500.0,0.00012127,2]
[400679321,1767778238210,-500.0,0.00012127,2]
[400679322,1767778238224,-500.0,0.00012127,2]
[400679323,1767778238234,-500.0,0.00012127,2]
[400679324,1767778238245,-500.0,0.00012127,2]
[400679325,1767778238255,-600.75188049,0.00012127,2]
[400679326,1767778238266,-500.0,0.00012127,2]
[400679327,1767778238276,-500.0,0.00012127,2]
[400679328,1767778238286,-500.0,0.00012127,2]
[400679329,1767778238297,-500.0,0.00012127,2]
[400679331,1767778238308,-500.0,0.00012127,2]
[400679333,1767778238318,-500.0,0.00012127,2]
[400679335,1767778238329,-500.0,0.00012127,2]
[400679337,1767778238340,-559.3840398,0.00012127,2]
[400679339,1767778238351,-500.0,0.00012127,2]
[400679341,1767778238361,-944587.22484657,0.00012128,2]
[400679343,1767778238372,-5000.0,0.00012228,2]
[400679345,1767778238383,-244.86152959,0.00012228,2]
[400679347,1767778238393,-300.0,0.0001247,2]
[400679349,1767778238403,-300.0,0.0001247,2]
[400679351,1767778238413,-300.0,0.0001247,2]
[400679353,1767778238423,-300.0,0.0001247,2]
[400679355,1767778238434,-300.0,0.0001247,2]
[400679357,1767778238445,-300.0,0.0001247,2]
[400679360,1767778238456,-300.0,0.0001247,2]
[400679361,1767778238466,-300.0,0.0001247,2]
[400679363,1767778238480,-300.0,0.0001247,2]
[400679366,1767778238490,-300.0,0.0001247,2]
[400679368,1767778238500,-300.0,0.0001247,2]
[400679370,1767778238511,-300.0,0.0001247,2]
[400679372,1767778238521,-300.0,0.0001247,2]
[400679374,1767778238531,-300.0,0.0001247,2]
[400679376,1767778238543,-300.0,0.0001247,2]
[400679378,1767778238555,-600.0,0.00012471,2]
[400679380,1767778238569,-55588.4334907,0.00012741,2]
[400679382,1767778238579,-3349.3810528,0.00012741,2]
[400679384,1767778238589,-8286.800204,0.00012741,2]
[400679386,1767778238599,-30812.3436914,0.00012741,2]
[400679388,1767778238609,-500.0,0.00013273,2]
[400679390,1767778238619,-500.0,0.00013273,2]
[400679392,1767778238629,-500.0,0.00013273,2]
[400679394,1767778238639,-500.0,0.00013273,2]
[400679396,1767778238649,-420.0,0.00013309,2]
[400679398,1767778238660,-500.0,0.00013424,2]
[400679400,1767778238670,-990.0,0.00013424,2]
[400679402,1767778238680,-150.75126271,0.00013424,2]
[400679404,1767778238690,-500.0,0.00013424,2]
[400679406,1767778238700,-151.52117963,0.00013424,2]
[400679408,1767778238711,-500.0,0.00013561,2]
[400679410,1767778238721,-990.0,0.00013561,2]
[400679412,1767778238731,-500.0,0.00013561,2]
[400679414,1767778238742,-261.5353383,0.00013561,2]
[400679416,1767778238753,-151.56017143,0.00013561,2]
[400679418,1767778238764,-300.0,0.00013673,2]
[400679420,1767778238774,-314.3735124,0.00013698,2]
[400679422,1767778238786,-259.14783661,0.00013698,2]
[400679424,1767778238797,-990.0,0.00013698,2]
[400679426,1767778238807,-595.12568369,0.00013698,2]
[400679428,1767778238818,-152.02997996,0.00013698,2]
[400679430,1767778238828,-500.0,0.00013698,2]
[400679432,1767778238838,-500.0,0.00013698,2]
[400679434,1767778238850,-500.0,0.00013698,2]
[400679436,1767778238859,-500.0,0.00013698,2]
[400679438,1767778238870,-500.0,0.00013698,2]
[400679440,1767778238880,-500.0,0.00013698,2]
[400679442,1767778238890,-500.0,0.00013698,2]
[400679444,1767778238902,-500.0,0.00013698,2]
[400679446,1767778238913,-500.0,0.00013698,2]
[400679448,1767778238924,-500.0,0.00013698,2]
[400679450,1767778238934,-500.0,0.00013698,2]
[400679452,1767778238944,-500.0,0.00013698,2]
[400679454,1767778238954,-500.0,0.00013698,2]
[400679456,1767778238965,-500.0,0.00013698,2]
[400679458,1767778238975,-500.0,0.00013698,2]
[400679460,1767778238985,-500.0,0.00013698,2]
[400679462,1767778238996,-500.0,0.00013698,2]
[400679464,1767778239006,-500.0,0.00013698,2]
[400679465,1767778239016,-362.49716895,0.00013698,2]
[400679467,1767778239027,-500.0,0.00013698,2]
[400679469,1767778239040,-500.0,0.00013698,2]
[400679472,1767778239051,-500.0,0.00013698,2]
[400679473,1767778239062,-2245.401059,0.00013699,2]
[400679475,1767778239073,-396.79905749,0.00013699,2]
[400679477,1767778239083,-444.06491981,0.00013699,2]
[400679479,1767778239094,-500.0,0.00013699,2]
[400679481,1767778239104,-152.05252624,0.00013699,2]
[400679483,1767778239114,-500.0,0.00013699,2]
[400679485,1767778239125,-158.43712124,0.00013699,2]
[400679487,1767778239135,-160.28540264,0.00013699,2]
[400679489,1767778239146,-500.0,0.00013699,2]
[400679491,1767778239157,-500.0,0.00013699,2]
[400679493,1767778239167,-500.0,0.00013699,2]
[400679495,1767778239178,-500.0,0.00013699,2]
[400679496,1767778239189,-500.0,0.00013699,2]
[400679497,1767778239199,-720.0,0.00013718,2]
[400679498,1767778239209,-1000.0,0.00013821,2]
[400679499,1767778239219,-1000.0,0.00013821,2]
[400679500,1767778239230,-1000.0,0.00013821,2]
[400679501,1767778239240,-1000.0,0.00013821,2]
[400679502,1767778239249,-990.0,0.00013835,2]
[400679503,1767778239259,-8929.0,0.0001386,2]
[400679504,1767778239269,-990.0,0.00013972,2]
[400679505,1767778239279,-500.0,0.00013973,2]
[400679506,1767778239293,-990.0,0.00014109,2]
[400679507,1767778239303,-209.63078805,0.0001411,2]
[400679508,1767778239313,-603.89498635,0.0001411,2]
[400679509,1767778239323,-210.83487892,0.0001411,2]
[400679510,1767778239334,-600.0,0.00014221,2]
[400679511,1767778239344,-288.93660492,0.00014228,2]
[400679512,1767778239354,-990.0,0.00014246,2]
[400679513,1767778239364,-502.70184396,0.00014247,2]
[400679514,1767778239375,-1000.0,0.00014247,2]
[400679515,1767778239384,-1000.0,0.00014247,2]
[400679516,1767778239394,-1000.0,0.00014247,2]
[400679517,1767778239656,-1000.0,0.00014247,2]
[400679518,1767778239668,-506.91111939,0.00014247,2]
[400679519,1767778239678,-1000.0,0.00014247,2]
[400679520,1767778239688,-1500.0,0.00014368,2]
[400679521,1767778239697,-500.0,0.00014368,2]
[400679522,1767778239706,-1500.0,0.00014368,2]
[400679523,1767778239715,-1500.0,0.00014368,2]
[400679524,1767778239724,-990.0,0.00014383,2]
[400679526,1767778239733,-160.56827625,0.00014384,2]
[400679527,1767778239743,-177.57781539,0.00014384,2]
[400679528,1767778239752,-12403.4560671,0.00014511,2]
[400679529,1767778239763,-990.0,0.0001452,2]
[400679530,1767778239772,-156.27075541,0.00014521,2]
[400679531,1767778239781,-587.0,0.00014609,2]
[400679532,1767778239792,-30812.3436914,0.00014613,2]
[400679533,1767778239802,-990.0,0.00014657,2]
[400679534,1767778239813,-900.0,0.00014768,2]
[400679535,1767778239822,-990.0,0.00014794,2]
[400679536,1767778239832,-1002.73058689,0.00014795,2]
[400679537,1767778239841,-1500.0,0.00014795,2]
[400679538,1767778239851,-636.08782837,0.00014795,2]
[400679539,1767778239863,-1500.0,0.00014795,2]
[400679540,1767778239873,-1500.0,0.00014795,2]
[400679541,1767778239882,-500.0,0.00014816,2]
[400679542,1767778239892,-206.58822789,0.00014816,2]
[400679543,1767778239902,-500.0,0.00014816,2]
[400679544,1767778239911,-500.0,0.00014816,2]
[400679545,1767778239921,-100000.0,0.00014882,2]
[400679546,1767778239931,-594.48760347,0.000149,2]
[400679547,1767778239941,-6917.44422893,0.000149,2]
[400679548,1767778239950,-2767.5851386,0.00014906,2]
[400679549,1767778239960,-305961.524214,0.00014916,2]
[400679550,1767778239971,-2000.0,0.00014916,2]
[400679551,1767778239980,-2000.0,0.00014916,2]
[400679552,1767778239990,-2000.0,0.00014916,2]
[400679553,1767778240000,-990.0,0.00014931,2]
[400679554,1767778240010,-261.88445837,0.00014953,2]
[400679555,1767778240020,-500.0,0.00014953,2]
[400679556,1767778240030,-500.0,0.00014953,2]
[400679557,1767778240040,-500.0,0.00014953,2]
[400679558,1767778240050,-999.999999,0.00015,2]
[400679559,1767778240060,-1000.0,0.00015,2]
[400679560,1767778240070,-1018.09986707,0.00015,2]
[400679561,1767778240080,-502.26303891,0.00015,2]
[400679562,1767778240090,-31548.41630509,0.00015,2]
[400679563,1767778240099,-150.8752938,0.00015,2]
[400679564,1767778240109,-990.0,0.00015068,2]
[400679565,1767778240120,-800.0,0.00015068,2]
[400679566,1767778240130,-500.0,0.0001509,2]
[400679567,1767778240139,-500.0,0.0001509,2]
[400679568,1767778240150,-500.0,0.0001509,2]
[400679569,1767778240160,-864.0,0.0001509,2]
[400679570,1767778240171,-990.0,0.00015205,2]
[400679571,1767778240182,-500.0,0.00015227,2]
[400679572,1767778240192,-500.0,0.00015227,2]
[400679573,1767778240202,-500.0,0.00015227,2]
[400679575,1767778240211,-1200.0,0.00015316,2]
[400679577,1767778240220,-990.0,0.00015342,2]
[400679579,1767778240229,-2000.0,0.00015342,2]
[400679580,1767778240239,-2000.0,0.00015342,2]
[400679581,1767778240249,-2000.0,0.00015342,2]
[400679582,1767778240259,-500.0,0.00015364,2]
[400679583,1767778240268,-206.74458148,0.00015364,2]
[400679584,1767778240278,-500.0,0.00015364,2]
[400679585,1767778240289,-500.0,0.00015364,2]
[400679586,1767778240299,-1703.61772074,0.00015366,2]
[400679587,1767778240309,-1849.0350566,0.00015409,2]
[400679588,1767778240318,-2500.0,0.00015464,2]
[400679589,1767778240328,-2500.0,0.00015464,2]
[400679590,1767778240339,-2500.0,0.00015464,2]
[400679591,1767778240349,-990.0,0.00015479,2]
[400679592,1767778240364,-500.0,0.00015501,2]
[400679593,1767778240386,-500.0,0.00015501,2]
[400679594,1767778240398,-621.60339535,0.00015501,2]
[400679595,1767778240408,-990.0,0.00015616,2]
[400679596,1767778240419,-500.0,0.00015638,2]
[400679597,1767778240431,-500.0,0.00015638,2]
[400679599,1767778240442,-166.7558634,0.00015746,2]
[400679601,1767778240453,-990.0,0.00015753,2]
[400679603,1767778240462,-500.0,0.00015775,2]
[400679604,1767778240476,-500.0,0.00015775,2]
[400679605,1767778240487,-1203.39831266,0.00015864,2]
[400679606,1767778240498,-990.0,0.0001589,2]
[400679607,1767778240509,-2500.0,0.0001589,2]
[400679608,1767778240519,-2500.0,0.0001589,2]
[400679609,1767778240529,-2500.0,0.0001589,2]
[400679610,1767778240540,-500.0,0.00015912,2]
[400679611,1767778240549,-364.24644296,0.00015912,2]
[400679612,1767778240559,-8929.0,0.00015939,2]
[400679613,1767778240568,-215.68492171,0.00016,2]
[400679614,1767778240578,-412.5754883,0.00016005,2]
[400679616,1767778240587,-3000.0,0.00016012,2]
[400679617,1767778240597,-3000.0,0.00016012,2]
[400679618,1767778240607,-3000.0,0.00016012,2]
[400679619,1767778240616,-990.0,0.00016027,2]
[400679620,1767778240626,-249.0,0.00016035,2]
[400679621,1767778240635,-500.0,0.00016049,2]
[400679622,1767778240645,-990.0,0.00016164,2]
[400679623,1767778240654,-1600.0,0.00016164,2]
[400679624,1767778240663,-500.0,0.00016186,2]
[400679625,1767778240672,-333.01168025,0.00016228,2]
[400679626,1767778240683,-990.0,0.00016301,2]
[400679627,1767778240692,-1000.0,0.00016321,2]
[400679628,1767778240702,-500.0,0.00016323,2]
[400679629,1767778240711,-990.0,0.00016438,2]
[400679630,1767778240721,-3000.0,0.00016438,2]
[400679631,1767778240741,-3000.0,0.00016438,2]
[400679632,1767778240761,-3000.0,0.00016438,2]
[400679633,1767778240773,-183.85,0.0001644,2]
[400679634,1767778240783,-183.85,0.0001644,2]
[400679635,1767778240795,-500.0,0.0001646,2]
[400679636,1767778240806,-30812.3436914,0.00016486,2]
[400679637,1767778240817,-774.29394276,0.0001656,2]
[400679638,1767778240829,-2627.52709265,0.0001656,2]
[400679639,1767778240843,-3500.0,0.0001656,2]
[400679640,1767778240853,-998.00000003,0.00016575,2]
[400679641,1767778240867,-500.0,0.00016597,2]
[400679642,1767778240878,-1000.0,0.00016599,2]
[400679643,1767778240888,-500.0,0.00016734,2]
[400679644,1767778240901,-53819.04156786,0.00016778,2]
[400679645,1767778240911,-302.47712024,0.00016871,2]
[400679646,1767778240920,-3500.0,0.00016986,2]
[400679647,1767778240930,-3500.0,0.00016986,2]
[400679648,1767778240939,-3500.0,0.00016986,2]
[400679649,1767778240949,-4000.0,0.00017108,2]
[400679650,1767778240959,-2400.0,0.0001726,2]
[400679651,1767778240969,-4000.0,0.00017534,2]
[400679652,1767778240980,-4000.0,0.00017534,2]
[400679653,1767778240991,-4000.0,0.00017534,2]
[400679654,1767778241003,-4500.0,0.00017656,2]
[400679655,1767778241014,-27429.36672841,0.00018,2]
[400679656,1767778241023,-4500.0,0.00018082,2]
[400679657,1767778241039,-882.05613913,0.00018082,2]
[400679658,1767778241059,-4500.0,0.00018082,2]
[400679659,1767778241074,-31848.87772426,0.00018082,3]
[400679660,1767778241088,-5000.0,0.00018204,2]
[400679661,1767778241099,-377.08675557,0.00018228,2]
[400679662,1767778241113,-1000.0,0.00018259,2]
[400679663,1767778241123,-244.0,0.00018259,2]
[400679664,1767778241134,-802.30074464,0.00018356,2]
[400679665,1767778241146,-30812.3436914,0.00018358,2]
[400679666,1767778241156,-1703.61772074,0.00018605,2]
[400679667,1767778241167,-5000.0,0.0001863,2]
[400679668,1767778241179,-838.56279606,0.0001863,2]
[400679669,1767778241189,-5500.0,0.00018752,2]
[400679670,1767778241199,-1434.94128664,0.00019,2]
[400679671,1767778241208,-17949.00191859,0.00019,2]
[400679672,1767778241217,-2603.49,0.00019,2]
[400679673,1767778241227,-7000.62506532,0.00019,2]
[400679674,1767778241237,-352.8926,0.00019178,5]
[400679675,1767778241246,-352.8926,0.00019178,2]
[400679676,1767778241256,-352.8926,0.00019178,4]
[400679677,1767778241265,-352.8926,0.00019178,5]
[400679678,1767778241275,-352.8926,0.00019178,2]
[400679679,1767778241284,-352.8926,0.00019178,4]
[400679680,1767778241294,-352.8926,0.00019178,5]
[400679681,1767778241303,-352.8926,0.00019178,2]
[400679682,1767778241313,-352.8926,0.00019178,4]
[400679683,1767778241322,-352.8926,0.00019178,5]
[400679684,1767778241331,-352.8926,0.00019178,2]
[400679685,1767778241341,-352.8926,0.00019178,4]
[400679686,1767778241350,-352.8926,0.00019178,5]
[400679687,1767778241359,-352.8926,0.00019178,2]
[400679688,1767778241369,-352.8926,0.00019178,4]
[400679689,1767778241379,-900.0,0.00019178,2]
[400679690,1767778241388,-5011.36258874,0.00019178,2]
[400679691,1767778241397,-25963.54,0.000192,2]
[400679692,1767778241408,-286.8,0.000192,2]
[400679693,1767778241417,-243.07,0.000192,2]
[400679694,1767778241427,-167.78,0.000192,2]
[400679695,1767778241436,-497.81118302,0.00019205,5]
[400679696,1767778241445,-331.75246461,0.000193,2]
[400679697,1767778241455,-159.0,0.00019397,3]